bitfinex-derivatives/quotes_SOLF0:USTF0_20250730
["timestamp","ask_amount","ask_price","bid_price","bid_amount"]
[1753856346131,3.03,181.56,181.55,3.15]
[1753856347941,8.5383,181.56,181.55,3.15]
[1753856348239,3.03,181.55,181.53,3.15]
[1753856351233,8.5387,181.55,181.53,3.15]
[1753856351436,3.03,181.54,181.53,3.15]
[1753856351645,3.03,181.54,181.51,2.71228582]
[1753856351842,5.5089,181.54,181.52,3.15]
[1753856352039,3.03,181.53,181.51,11.37198582]
[1753856352344,3.03,181.53,181.51,5.86228582]
[1753856352634,3.03,181.53,181.5,5.5101]
[1753856352835,3.03,181.53,181.5,8.6601]
[1753856353033,3.03,181.52,181.5,3.15]
[1753856354342,3.03,181.51,181.5,5.5101]
[1753856354539,3.03,181.53,181.5,5.5101]
[1753856354841,3.03,181.53,181.51,3.15]
[1753856355646,3.03,181.52,181.51,3.15]
[1753856356641,5.509,181.54,181.51,3.15]
[1753856356853,3.03,181.53,181.52,3.15]
[1753856358250,3.03,181.53,181.52,5.5095]
[1753856358442,2.71228582,181.58,181.52,3.15]
[1753856358443,3.03,181.57,181.52,3.15]
[1753856359547,3.03,181.57,181.55,3.15]
[1753856359848,3.03,181.57,181.54,3.15]
[1753856360042,3.03,181.57,181.52,3.15]
[1753856360242,3.03,181.56,181.52,3.15]
[1753856360444,3.03,181.55,181.5,3.15]
[1753856360649,5.5091,181.54,181.5,8.6599]
[1753856360950,3.03,181.53,181.51,3.15]
[1753856361352,3.03,181.53,181.48,5.86228582]
[1753856361546,3.03,181.53,181.49,3.06]
[1753856361747,3.03,181.53,181.5,5.5099]
[1753856361952,3.03,181.53,181.5,8.5699]
[1753856362346,3.03,181.53,181.51,3.06]
[1753856362552,2.98,181.53,181.51,3.06]
[1753856362852,8.4892,181.53,181.51,3.06]
[1753856363050,2.98,181.52,181.51,3.06]
[1753856364254,2.98,181.52,181.51,8.5698]
[1753856364455,2.98,181.52,181.49,3.06]
[1753856364652,2.98,181.52,181.5,3.06]
[1753856365353,2.98,181.51,181.5,3.06]
[1753856366253,2.98,181.51,181.5,8.5701]
[1753856370952,2.98,181.53,181.51,5.5096]
[1753856371159,2.98,181.53,181.52,3.06]
[1753856371860,2.98,181.53,181.52,5.5095]
[1753856372055,2.71228582,181.59,181.52,3.06]
[1753856372263,2.98,181.53,181.52,3.06]
[1753856372561,2.98,181.53,181.52,8.5693]
[1753856373156,2.98,181.55,181.54,5.5088]
[1753856373359,2.98,181.55,181.54,8.5688]
[1753856374955,2.98,181.55,181.54,5.5088]
[1753856375262,2.98,181.55,181.53,8.5691]
[1753856376654,2.98,181.55,181.5,5.77228582]
[1753856376850,2.98,181.55,181.42,117.13453015]
[1753856376851,2.98,181.55,181.48,5.77228582]
[1753856377061,2.98,181.54,181.48,5.77228582]
[1753856377260,2.98,181.54,181.49,3.06]
[1753856377754,2.98,181.51,181.47,3.06]
[1753856378151,2.71228582,181.55,181.48,8.5707]
[1753856378352,2.98,181.5,181.48,3.06]
[1753856378557,2.98,181.53,181.47,3.06]
[1753856378956,8.4894,181.53,181.49,5.5102]
[1753856379155,2.98,181.52,181.49,8.5702]
[1753856379368,2.98,181.52,181.5,3.06]
[1753856380463,2.98,181.51,181.5,3.06]
[1753856381163,2.98,181.53,181.5,8.5701]
[1753856381363,2.98,181.53,181.5,5.5101]
[1753856381665,2.98,181.53,181.52,3.06]
[1753856385574,2.98,181.53,181.52,8.5695]
[1753856385864,2.98,181.53,181.52,3.06]
[1753856386862,2.98,181.53,181.51,3.06]
[1753856387371,5.5094,181.53,181.5,8.57]
[1753856387568,2.98,181.52,181.5,8.57]
[1753856388171,2.98,181.52,181.5,5.51]
[1753856388373,2.98,181.52,181.51,8.5698]
[1753856388667,2.98,181.53,181.52,3.06]
[1753856388866,7.08555853,181.53,181.52,3.06]
[1753856392871,12.59485853,181.53,181.5,8.54]
[1753856393078,3.22,181.52,181.48,3.03]
[1753856393276,3.22,181.52,181.49,3.03]
[1753856393877,3.22,181.52,181.46,120.27]
[1753856394077,3.22,181.51,181.46,117.24]
[1753856394272,3.22,181.51,181.47,3.03]
[1753856394477,3.22,181.51,181.48,3.03]
[1753856395176,3.22,181.49,181.48,3.03]
[1753856395776,8.7304,181.49,181.48,3.03]
[1753856395976,8.7304,181.49,181.46,125.7812]
[1753856396178,5.5104,181.49,181.47,3.03]
[1753856396480,5.511,181.47,181.46,117.24]
[1753856396776,3.22,181.49,181.46,117.24]
[1753856397573,3.22,181.49,181.46,120.27]
[1753856398175,3.22,181.49,181.46,3.03]
[1753856398375,3.22,181.47,181.46,3.03]
[1753856400273,3.22,181.47,181.46,8.5413]
[1753856400577,3.22,181.49,181.44,3.03]
[1753856400877,3.22,181.49,181.46,5.5111]
[1753856401069,3.22,181.48,181.47,3.03]
[1753856402174,2.71228582,181.52,181.47,3.03]
[1753856402375,3.22,181.5,181.48,3.03]
[1753856402577,3.22,181.5,181.49,3.03]
[1753856403180,3.22,181.5,181.48,3.03]
[1753856403379,5.93228582,181.5,181.44,3.03]
[1753856403680,3.22,181.49,181.44,3.03]
[1753856403879,3.22,181.49,181.45,8.5414]
[1753856404081,3.22,181.49,181.45,3.03]
[1753856404290,3.22,181.47,181.45,3.03]
[1753856404781,5.5112,181.47,181.45,3.03]
[1753856404984,3.22,181.46,181.44,5.5118]
[1753856405184,3.22,181.46,181.45,3.03]
[1753856406486,2.71228582,181.5,181.44,3.03]
[1753856406683,3.22,181.45,181.42,8.5424]
[1753856407185,3.22,181.45,181.42,3.03]
[1753856407382,3.22,181.45,181.43,3.03]
[1753856407781,3.22,181.45,181.41,122.7727]
[1753856407981,3.22,181.42,181.41,117.26]
[1753856408186,3.22,181.44,181.39,3.03]
[1753856408781,8.22398582,181.45,181.39,3.03]
[1753856409091,8.7317,181.45,181.39,3.03]
[1753856409385,3.22,181.44,181.39,3.03]
[1753856409790,8.7314,181.46,181.42,5.5123]
[1753856409989,5.5114,181.46,181.43,3.03]
[1753856410190,3.22,181.44,181.39,3.03]
[1753856410385,3.22,181.43,181.37,120.29]
[1753856410688,2.71228582,181.38,181.35,3.03]
[1753856410886,3.22,181.37,181.35,3.03]
[1753856411189,3.22,181.37,181.34,3.03]
[1753856411394,3.22,181.37,181.35,3.03]
[1753856411586,3.22,181.35,181.32,117.26]
[1753856411786,3.22,181.35,181.32,120.29]
[1753856412492,5.5151,181.34,181.32,120.29]
[1753856412682,3.22,181.33,181.27,3.03]
[1753856412880,3.22,181.31,181.27,3.03]
[1753856413081,8.736,181.31,181.27,8.5468]
[1753856413292,3.22,181.3,181.28,3.03]
[1753856415293,3.22,181.29,181.26,5.5172]
[1753856415490,3.22,181.29,181.27,3.03]
[1753856415691,3.22,181.28,181.27,3.03]
[1753856417494,3.22,181.28,181.25,117.26]
[1753856417702,3.22,181.26,181.25,120.29]
[1753856418092,3.22,181.34,181.26,3.03]
[1753856418397,3.22,181.3,181.28,3.03]
[1753856418594,2.71228582,181.31,181.26,3.03]
[1753856418789,5.93228582,181.33,181.27,3.03]
[1753856419094,3.22,181.32,181.27,3.03]
[1753856419297,8.7358,181.32,181.28,8.5467]
[1753856419593,3.22,181.31,181.28,5.5167]
[1753856419799,3.22,181.3,181.29,8.5465]
[1753856420190,3.22,181.31,181.3,3.03]
[1753856421694,5.93228582,181.31,181.26,3.21]
[1753856421895,5.5167,181.29,181.26,3.21]
[1753856422090,2.99,181.28,181.27,3.21]
[1753856423605,8.22818582,181.31,181.27,5.5171]
[1753856423807,2.99,181.29,181.27,5.5171]
[1753856423999,2.99,181.31,181.26,2.71228582]
[1753856424197,2.99,181.31,181.29,5.5165]
[1753856424501,2.99,181.31,181.3,3.21]
[1753856425205,2.99,181.33,181.29,3.21]
[1753856425506,2.99,181.33,181.3,5.5161]
[1753856425699,2.99,181.32,181.31,3.21]
[1753856427511,5.5151,181.34,181.31,3.21]
[1753856427702,2.99,181.33,181.31,3.21]
[1753856427904,2.99,181.33,181.32,3.21]
[1753856428804,8.5053,181.33,181.32,3.21]
[1753856429008,2.99,181.33,181.32,3.21]
[1753856429707,2.99,181.35,181.32,3.21]
[1753856430208,2.99,181.35,181.34,3.21]
[1753856430606,2.99,181.37,181.34,3.21]
[1753856430809,2.99,181.4,181.37,3.21]
[1753856431307,2.99,181.4,181.35,3.21]
[1753856431505,2.99,181.4,181.36,3.21]
[1753856431905,8.5034,181.4,181.36,3.21]
[1753856432212,2.99,181.39,181.37,3.21]
[1753856433309,5.5135,181.39,181.37,3.21]
[1753856433614,2.99,181.38,181.37,3.21]
[1753856434805,2.99,181.37,181.34,3.21]
[1753856435003,2.99,181.37,181.33,3.21]
[1753856435403,2.99,181.36,181.31,3.21]
[1753856435606,2.99,181.34,181.29,3.21]
[1753856435809,2.99,181.34,181.28,92.85973291]
[1753856435810,2.71228582,181.35,181.28,92.85973291]
[1753856436012,2.71228582,181.37,181.3,3.21]
[1753856436417,2.99,181.33,181.3,8.7259]
[1753856436618,2.99,181.34,181.31,3.21]
[1753856437206,2.99,181.36,181.3,3.21]
[1753856438315,5.5152,181.34,181.3,8.7262]
[1753856438617,2.99,181.32,181.31,3.21]
[1753856438818,2.99,181.36,181.28,92.85973291]
[1753856439119,2.99,181.35,181.32,3.21]
[1753856439414,2.99,181.38,181.34,3.21]
[1753856439814,2.99,181.38,181.35,3.21]
[1753856440120,2.99,181.38,181.36,3.21]
[1753856440320,8.504,181.38,181.36,3.21]
[1753856440518,2.99,181.37,181.36,3.21]
[1753856444516,2.99,181.37,181.33,8.7252]
[1753856444721,2.99,181.35,181.33,3.21]
[1753856444923,2.71228582,181.4,181.33,3.21]
[1753856445222,2.99,181.37,181.33,3.21]
[1753856446122,2.99,181.37,181.31,8.22798582]
[1753856446318,2.99,181.37,181.31,11.43798582]
[1753856446524,2.99,181.37,181.33,3.21]
[1753856448024,5.5146,181.36,181.33,3.21]
[1753856448226,2.99,181.35,181.33,3.21]
[1753856448928,8.5047,181.35,181.33,3.21]
[1753856449130,2.99,181.37,181.34,3.21]
[1753856450227,2.99,181.35,181.32,5.5156]
[1753856450426,2.99,181.35,181.33,3.21]
[1753856450827,2.99,181.34,181.32,3.21]
[1753856451021,2.71228582,181.38,181.29,2.71228582]
[1753856451226,5.5148,181.35,181.31,5.5157]
[1753856451523,3.01,181.34,181.32,3.04]
[1753856451829,2.71228582,181.38,181.32,3.04]
[1753856451830,3.01,181.36,181.32,3.04]
[1753856452320,3.01,181.36,181.33,5.5151]
[1753856452528,3.01,181.36,181.34,3.04]
[1753856452823,3.01,181.36,181.35,3.04]
[1753856453429,3.01,181.36,181.33,8.5551]
[1753856453824,3.01,181.36,181.33,3.04]
[1753856454021,2.71228582,181.38,181.33,3.04]
[1753856454324,3.01,181.36,181.32,3.04]
[1753856454526,2.71228582,181.38,181.32,3.04]
[1753856454727,3.01,181.35,181.33,5.5151]
[1753856454924,2.71228582,181.38,181.34,3.04]
[1753856455130,3.01,181.36,181.34,3.04]
[1753856455430,3.01,181.36,181.34,8.555]
[1753856455630,3.01,181.36,181.35,3.04]
[1753856455822,7.17148442,181.36,181.35,3.04]
[1753856456728,3.01,181.35,181.34,3.04]
[1753856459234,2.71228582,181.38,181.34,5.515]
[1753856459435,3.01,181.36,181.35,3.04]
[1753856459934,3.01,181.38,181.34,3.04]
[1753856460125,3.01,181.4,181.35,2.71228582]
[1753856460338,4.16228562,181.39,181.36,3.04]
[1753856460533,3.01,181.39,181.38,3.04]
[1753856460832,7.17222805,181.39,181.38,3.04]
[1753856461036,7.17222805,181.39,181.33,2.71228582]
[1753856461235,2.71228582,181.4,181.34,3.04]
[1753856461430,4.16221248,181.39,181.35,2.71228582]
[1753856461631,3.01,181.4,181.36,3.04]
[1753856461938,3.01,181.42,181.36,3.04]
[1753856462136,5.72228582,181.4,181.34,3.04]
[1753856462337,2.71228582,181.4,181.34,3.04]
[1753856462532,8.5236,181.39,181.35,8.5547]
[1753856462738,3.01,181.38,181.36,3.04]
[1753856462940,3.01,181.37,181.36,3.04]
[1753856465344,3.01,181.37,181.34,8.5549]
[1753856465545,3.01,181.37,181.34,3.04]
[1753856465944,3.01,181.35,181.34,3.04]
[1753856470153,3.01,181.34,181.32,3.04]
[1753856470852,3.01,181.33,181.32,3.04]
[1753856471953,3.01,181.33,181.3,117.38]
[1753856472153,3.01,181.32,181.31,3.04]
[1753856473955,3.01,181.32,181.31,8.5559]
[1753856474151,3.01,181.33,181.32,3.04]
[1753856474656,3.01,181.35,181.33,3.04]
[1753856474851,3.01,181.34,181.32,5.5156]
[1753856475357,3.01,181.34,181.33,3.04]
[1753856475855,3.01,181.34,181.29,3.04]
[1753856476054,3.01,181.33,181.29,3.04]
[1753856477059,3.01,181.33,181.3,3.04]
[1753856477250,5.5158,181.32,181.3,3.04]
[1753856477554,3.01,181.33,181.3,3.04]
[1753856477759,3.01,181.32,181.3,3.04]
[1753856477948,3.01,181.31,181.29,8.5564]
[1753856478552,3.01,181.3,181.29,8.5564]
[1753856481463,3.01,181.3,181.28,117.36]
[1753856481762,8.6367,181.29,181.25,5.5176]
[1753856481954,3.12,181.28,181.26,3.19]
[1753856482152,3.12,181.27,181.26,3.19]
[1753856482661,3.12,181.27,181.26,8.7072]
[1753856484064,3.12,181.27,181.26,3.19]
[1753856484355,3.12,181.27,181.25,126.0677]
[1753856484758,2.71228582,181.3,181.25,126.0677]
[1753856484957,3.12,181.28,181.26,5.5173]
[1753856485263,3.12,181.28,181.27,3.19]
[1753856485662,3.12,181.28,181.27,5.5171]
[1753856485856,3.12,181.29,181.28,3.19]
[1753856486857,5.5165,181.29,181.28,3.19]
[1753856487063,8.6365,181.29,181.28,3.19]
[1753856487963,3.12,181.29,181.28,3.19]
[1753856489863,8.6365,181.29,181.28,3.19]
[1753856490064,3.12,181.28,181.25,117.36]
[1753856490263,3.12,181.28,181.26,3.19]
[1753856490463,3.12,181.27,181.26,3.19]
[1753856491061,3.12,181.27,181.25,120.55]
[1753856491264,3.12,181.26,181.25,117.36]
[1753856493363,8.6374,181.26,181.25,117.36]
[1753856494265,11.34968582,181.26,181.25,117.36]
[1753856494465,3.12,181.24,181.22,3.19]
[1753856494762,3.12,181.24,181.23,117.4]
[1753856495166,3.12,181.24,181.23,120.59]
[1753856497066,3.12,181.24,181.23,3.19]
[1753856497263,3.12,181.23,181.19,117.4]
[1753856497467,3.12,181.23,181.19,120.59]
[1753856497665,5.5189,181.22,181.2,3.19]
[1753856497967,3.12,181.21,181.19,120.59]
[1753856498566,8.6391,181.21,181.19,120.59]
[1753856498766,3.12,181.2,181.19,120.59]
[1753856499169,3.12,181.2,181.19,117.4]
[1753856499567,3.12,181.2,181.19,120.59]
[1753856500166,5.5195,181.2,181.16,3.19]
[1753856500462,3.12,181.18,181.17,120.61]
[1753856500664,5.83228582,181.18,181.17,117.42]
[1753856500866,5.83228582,181.18,181.17,120.61]
[1753856501464,2.71228582,181.18,181.15,5.5207]
[1753856501664,2.71228582,181.18,181.16,3.19]
[1753856501665,3.12,181.17,181.16,3.19]
[1753856502060,3.12,181.17,181.16,8.7105]
[1753856503160,5.83228582,181.18,181.17,8.7102]
[1753856503971,3.12,181.19,181.18,3.19]
[1753856504270,3.12,181.19,181.18,8.7099]
[1753856504470,3.12,181.2,181.19,3.19]
[1753856504672,3.12,181.2,181.19,8.7096]
[1753856504970,3.12,181.21,181.2,3.19]
[1753856505362,3.12,181.21,181.19,5.5196]
[1753856505568,3.12,181.2,181.19,5.5196]
[1753856505867,3.12,181.2,181.18,122.9398]
[1753856506074,3.12,181.2,181.19,3.19]
[1753856508175,3.12,181.2,181.19,8.7096]
[1753856509973,3.12,181.2,181.19,3.19]
[1753856512276,3.12,181.2,181.19,8.7096]
[1753856513080,3.12,181.2,181.19,3.19]
[1753856513878,3.12,181.2,181.19,8.7096]
[1753856514779,8.5988,181.22,181.19,5.5196]
[1753856514979,3.08,181.21,181.2,3.14]
[1753856516680,3.08,181.22,181.2,3.14]
[1753856516978,3.08,181.22,181.21,3.14]
[1753856517379,8.5986,181.22,181.21,3.14]
[1753856517977,8.5986,181.22,181.18,117.42]
[1753856518179,3.08,181.21,181.2,3.14]
[1753856518885,5.5189,181.21,181.19,3.14]
[1753856519077,3.08,181.2,181.19,3.14]
[1753856519274,3.08,181.2,181.18,122.9398]
[1753856519582,3.08,181.2,181.18,126.0798]
[1753856519784,8.5992,181.2,181.19,3.14]
[1753856520085,3.08,181.21,181.18,117.42]
[1753856520584,5.5193,181.2,181.18,117.42]
[1753856520778,5.79228582,181.22,181.19,3.14]
[1753856520981,3.08,181.21,181.19,3.14]
[1753856521283,5.5191,181.21,181.19,3.14]
[1753856521483,3.08,181.2,181.19,3.14]
[1753856522383,3.08,181.22,181.19,8.6596]
[1753856522590,3.08,181.22,181.2,3.14]
[1753856522990,3.08,181.21,181.2,3.14]
[1753856523392,3.08,181.21,181.13,117.44]
[1753856523586,2.71228582,181.2,181.14,3.14]
[1753856523787,3.08,181.19,181.16,5.5203]
[1753856524089,3.08,181.19,181.17,3.14]
[1753856526191,3.08,181.18,181.17,3.14]
[1753856527296,8.5999,181.18,181.17,3.14]
[1753856528691,3.08,181.18,181.17,3.14]
[1753856530796,8.6001,181.18,181.14,3.14]
[1753856530998,5.5201,181.18,181.14,3.14]
[1753856531295,3.08,181.16,181.14,3.14]
[1753856531986,3.08,181.16,181.14,8.661]
[1753856532185,3.08,181.16,181.15,3.14]
[1753856537007,3.08,181.16,181.14,5.521]
[1753856537206,3.08,181.16,181.15,3.14]
[1753856538910,3.08,181.16,181.15,8.6608]
[1753856540713,3.08,181.16,181.15,3.14]
[1753856541011,3.08,181.19,181.15,3.14]
[1753856541208,2.71228582,181.18,181.13,3.14]
[1753856541414,3.25,181.15,181.13,117.44]
[1753856541713,3.25,181.14,181.13,117.44]
[1753856542107,3.25,181.14,181.13,120.48]
[1753856543107,3.25,181.15,181.13,117.44]
[1753856543306,3.25,181.15,181.14,3.04]
[1753856544512,3.25,181.15,181.13,120.48]
[1753856544813,3.25,181.15,181.13,3.04]
[1753856545009,2.71228582,181.14,181.12,117.44]
[1753856545210,2.71228582,181.14,181.06,2.71228582]
[1753856545211,3.25,181.13,181.07,3.04]
[1753856545409,3.25,181.13,181.06,2.71228582]
[1753856545410,3.25,181.13,181.09,3.04]
[1753856545808,8.7715,181.13,181.09,3.04]
[1753856546005,3.25,181.12,181.09,3.04]
[1753856546715,3.25,181.12,181.1,3.04]
[1753856546909,3.25,181.11,181.1,3.04]
[1753856551012,3.25,181.11,181.09,117.46]
[1753856551317,3.25,181.11,181.09,3.04]
[1753856555223,3.25,181.11,181.1,3.04]
[1753856557220,8.772,181.11,181.1,3.04]
[1753856557925,3.25,181.1,181.09,3.04]
[1753856558120,5.522,181.11,181.04,2.71228582]
[1753856558325,3.25,181.09,181.05,3.04]
[1753856558528,3.25,181.09,181.06,117.46]
[1753856558723,8.23548582,181.08,181.04,5.5239]
[1753856558919,1.74056518,181.05,180.95,12.088588]
[1753856559118,3.25,181.01,180.98,1.74056518]
[1753856559323,1.74056518,181.02,181.0,5.5253]
[1753856559527,4.99056518,181.02,181.01,3.04]
[1753856559726,4.99056518,181.02,181.01,8.565]
[1753856559929,1.74056518,181.02,181.01,8.565]
[1753856560121,4.99056518,181.04,181.01,5.525]
[1753856560324,4.99056518,181.04,181.02,3.04]
[1753856560724,3.25,181.03,181.0,3.04]
[1753856560923,3.25,181.02,181.0,3.04]
[1753856561120,3.25,181.02,181.01,3.04]
[1753856561326,3.25,181.02,181.0,122.9853]
[1753856561626,8.24529943,181.04,181.0,122.9853]
[1753856561822,3.25,181.03,181.01,3.04]
[1753856562025,3.25,181.03,181.01,8.5648]
[1753856562231,2.72089943,181.04,181.01,5.5248]
[1753856562427,3.25,181.03,181.0,117.46]
[1753856562627,3.25,181.03,180.96,2.72089943]
[1753856562828,3.25,181.03,181.0,120.52]
[1753856563025,3.25,181.03,181.01,3.04]
[1753856564229,2.72089943,181.06,181.01,3.04]
[1753856564528,3.25,181.09,181.03,3.04]
[1753856564728,8.7727,181.09,181.05,5.5236]
[1753856564931,5.5227,181.09,181.05,5.5236]
[1753856565140,3.25,181.07,181.05,5.5236]
[1753856565634,3.25,181.07,181.06,3.04]
[1753856566023,3.25,181.07,181.03,120.52]
[1753856566328,3.25,181.07,181.04,3.04]
[1753856566530,3.25,181.07,181.04,8.5641]
[1753856566728,3.25,181.06,181.04,3.04]
[1753856566927,3.25,181.1,181.05,3.04]
[1753856567130,2.72089943,181.11,181.06,5.5234]
[1753856567335,3.25,181.09,181.07,3.04]
[1753856567531,3.25,181.08,181.06,5.5234]
[1753856567834,3.25,181.07,181.05,5.5237]
[1753856568032,3.25,181.1,181.06,3.04]
[1753856568233,3.25,181.08,181.06,3.04]
[1753856568935,3.25,181.08,181.07,3.04]
[1753856570034,3.25,181.1,181.07,3.04]
[1753856570730,3.25,181.09,181.07,3.04]
[1753856571743,3.25,181.09,181.08,3.2]
[1753856572137,2.95,181.13,181.08,3.2]
[1753856572336,2.95,181.14,181.08,3.2]
[1753856572838,2.95,181.13,181.11,3.2]
[1753856573140,2.95,181.16,181.11,3.2]
[1753856574243,8.4707,181.16,181.13,5.5214]
[1753856574544,2.95,181.15,181.14,3.2]
[1753856575945,2.95,181.17,181.13,2.72089943]
[1753856576149,2.95,181.17,181.14,3.2]
[1753856577042,2.95,181.17,181.16,8.7205]
[1753856577846,2.95,181.2,181.15,2.72089943]
[1753856578045,2.95,181.2,181.16,3.2]
[1753856578347,2.95,181.21,181.18,3.2]
[1753856578547,2.95,181.21,181.19,3.2]
[1753856579049,8.469,181.21,181.19,3.2]
[1753856579244,2.95,181.2,181.19,3.2]
[1753856581149,2.95,181.2,181.17,5.5201]
[1753856581150,2.95,181.2,181.17,3.2]
[1753856581547,2.95,181.19,181.17,3.2]
[1753856581944,2.95,181.18,181.16,5.5204]
[1753856582144,2.95,181.16,181.15,5.5207]
[1753856582345,2.95,181.16,181.15,8.7207]
[1753856582546,2.95,181.2,181.15,5.92089943]
[1753856582747,2.95,181.23,181.18,3.2]
[1753856582949,4.17778609,181.22,181.18,3.2]
[1753856583249,2.95,181.2,181.19,3.2]
[1753856583952,2.95,181.2,181.17,8.7202]
[1753856584452,2.95,181.2,181.18,3.2]
[1753856584649,2.95,181.2,181.19,3.2]
[1753856587954,2.95,181.22,181.16,3.2]
[1753856588560,5.67089943,181.22,181.16,3.2]
[1753856589055,5.5196,181.19,181.16,3.2]
[1753856589260,2.95,181.18,181.16,3.2]
[1753856589663,2.95,181.18,181.16,8.7204]
[1753856589962,2.95,181.18,181.16,3.2]
[1753856590564,2.95,181.17,181.16,3.2]
[1753856590857,2.95,181.17,181.14,5.521]
[1753856591060,8.4702,181.17,181.14,8.721]
[1753856591363,2.95,181.16,181.14,8.721]
[1753856592566,2.95,181.16,181.14,3.2]
[1753856593065,2.95,181.15,181.14,3.2]
[1753856593561,2.95,181.17,181.14,3.2]
[1753856593765,2.95,181.16,181.14,3.2]
[1753856593965,2.95,181.15,181.11,120.32089943]
[1753856594167,2.95,181.15,181.14,5.5211]
[1753856594465,2.95,181.15,181.14,8.7211]
[1753856594966,2.95,181.15,181.14,3.2]
[1753856596968,2.95,181.15,181.14,8.7211]
[1753856597170,5.52,181.18,181.11,120.38089943]
[1753856597469,2.95,181.17,181.12,3.2]
[1753856597663,2.95,181.17,181.15,3.2]
[1753856598069,2.95,181.17,181.15,8.7207]
[1753856598270,2.95,181.17,181.16,3.2]
[1753856598866,2.95,181.19,181.15,5.5207]
[1753856599073,2.95,181.19,181.14,5.521]
[1753856599370,2.95,181.17,181.15,3.2]
[1753856600071,2.95,181.16,181.15,3.2]
[1753856601069,2.95,181.17,181.16,3.2]
[1753856601962,2.72089943,181.2,181.16,3.2]
[1753856602166,3.21,181.19,181.14,5.5209]
[1753856602367,5.5201,181.18,181.15,3.04]
[1753856602574,3.21,181.17,181.15,3.04]
[1753856602872,3.21,181.17,181.13,126.2413]
[1753856603273,3.21,181.17,181.14,3.04]
[1753856604373,3.21,181.15,181.14,3.04]
[1753856607671,5.5206,181.16,181.14,3.04]
[1753856607875,8.7306,181.16,181.14,3.04]
[1753856609471,5.5206,181.16,181.14,3.04]
[1753856609676,3.21,181.15,181.14,3.04]
[1753856610778,8.7308,181.15,181.14,3.04]
[1753856610978,3.21,181.15,181.14,3.04]
[1753856611776,3.21,181.17,181.14,3.04]
[1753856612379,2.72089943,181.18,181.14,5.5211]
[1753856612579,3.21,181.16,181.15,3.04]
[1753856613280,8.7305,181.16,181.15,3.04]